[Event "Qatar Masters-B 2024"]
[Site "Doha"]
[Date "2024.12.05"]
[Round "3.1"]
[White "Khalil, Manar"]
[Black "Zozek Salah Mohammed"]
[Result "0-1"]
[ECO "C07"]
[WhiteElo "1900"]
[BlackElo "2206"]
[Annotator "RC"]
[PlyCount "106"]
[EventDate "2024.11.24"]
[EventType "swiss"]
[EventCountry "QAT"]
[SourceTitle "playchess.com"]
[Source "ChessBase"]
[SourceQuality "1"]
[TimeControl "40/5400+30:1800+30"]

1. e4 {[%emt 0:00:06]} e6 {[%emt 0:00:20]} 2. d4 {[%emt 0:00:16]} d5 {[%emt 0:00:08]} 3. Nd2 {[%emt 0:00:36]} c5 {[%emt 0:01:46]} 4. exd5 {[%emt 0:01:22]} Qxd5 {[%emt 0:00:11]} 5. Ngf3 {[%emt 0:00:18]} cxd4 {[%emt 0:00:14]} 6. Bc4 {[%emt 0:00:19]} Qd6 {[%emt 0:00:08]} 7. O-O {[%emt 0:00:30]} Nf6 {[%emt 0:00:06]} 8. Nb3 {[%emt 0:00:58]} Nc6 {[%emt 0:00:14]} 9. Nbxd4 {[%emt 0:00:50]} Nxd4 {[%emt 0:00:05]} 10. Nxd4 {[%emt 0:00:27]} Be7 {[%emt 0:01:22]} 11. Nb5 {[%emt 0:06:54]} Qc6 {[%emt 0:01:23]} 12. Qe2 {[%emt 0:03:17]} a6 {[%emt 0:01:51]} 13. Bf4 {[%emt 0:06:17]} O-O {[%emt 0:00:32]} 14. Nd4 {[%emt 0:02:18]} Qc5 {[%emt 0:05:07]} 15. Rad1 {[%emt 0:09:00]} b5 {[%emt 0:12:40]} 16. Bb3 {[%emt 0:06:04]} Bb7 {[%emt 0:04:01]} 17. Qe5 {[%emt 0:09:21]} Rfd8 {[%emt 0:10:40]} 18. Rfe1 {[%emt 0:11:53]} Bd5 {[%emt 0:19:37]} 19. c3 {[%emt 0:10:59]} b4 {[%emt 0:10:31]} 20. cxb4 {[%emt 0:11:03]} Qxb4 {[%emt 0:00:34]} 21. h3 {[%emt 0:02:19]} Bxb3 {[%emt 0:08:03]} 22. Nxb3 {[%emt 0:04:45]} Bd6 {[%emt 0:09:21]} 23. Qd4 {[%emt 0:00:22]} Nd5 {[%emt 0:01:53]} 24. Bxd6 {[%emt 0:01:23]} Qxd6 {[%emt 0:00:05]} 25. Rc1 {[%emt 0:04:12]} Nb4 {[%emt 0:03:39]} 26. Qxd6 {[%emt 0:01:11]} Rxd6 {[%emt 0:00:01]} 27. Rc4 {[%emt 0:01:29]} Rb8 {[%emt 0:05:58]} 28. a3 {[%emt 0:04:18]} Nd3 {[%emt 0:02:06]} 29. Re2 {[%emt 0:00:40]} h5 {[%emt 0:00:46]} 30. Rc3 {[%emt 0:00:29]} Nf4 {[%emt 0:00:32]} 31. Rec2 {[%emt 0:00:34]} Rdb6 {[%emt 0:01:00]} 32. Rc8+ {[%emt 0:00:52]} Rxc8 {[%emt 0:00:14]} 33. Rxc8+ {[%emt 0:00:04]} Kh7 {[%emt 0:00:02]} 34. Nc5 {[%emt 0:00:28]} Rxb2 {[%emt 0:00:47]} 35. a4 {[%emt 0:01:26]} Rc2 {[%emt 0:01:10]} 36. Rc7 {[%emt 0:00:16]} Nd5 {[%emt 0:00:16]} 37. Rc6 {[%emt 0:00:38]} a5 {[%emt 0:00:21]} 38. g3 {[%emt 0:00:21]} Nb4 {[%emt 0:01:07]} 39. Rc7 {[%emt 0:00:16]} Nd5 {[%emt 0:00:27]} 40. Rc6 {[%emt 0:00:10]} g5 {[%emt 0:00:07]} 41. Rc8 {[%emt 0:30:37]} Nb6 {[%emt 0:30:55]} 42. Rc7 {[%emt 0:00:07]} Nd5 {[%emt 0:00:33]} 43. Rc8 {[%emt 0:00:19]} g4 {[%emt 0:00:19]} 44. h4 {[%emt 0:00:39]} Nb6 {[%emt 0:00:42]} 45. Rc7 {[%emt 0:00:02]} Nxa4 {[%emt 0:00:34]} 46. Nxe6 {[%emt 0:00:44]} Rxc7 {[%emt 0:00:03]} 47. Nxc7 {[%emt 0:00:04]} Nc5 {[%emt 0:00:23]} 48. f3 {[%emt 0:00:54]} f5 {[%emt 0:01:00]} 49. fxg4 {[%emt 0:00:39]} fxg4 {[%emt 0:00:01]} 50. Nb5 {[%emt 0:01:18]} a4 {[%emt 0:00:11]} 51. Nc3 {[%emt 0:00:16]} Kg6 {[%emt 0:00:31]} 52. Kf2 {[%emt 0:00:11]} Kf5 {[%emt 0:00:00]} 53. Ke3 {[%emt 0:00:08]} a3 {[%emt 0:00:15]} 0-1

[Event "Qatar Masters-B 2024"]
[Site "Doha"]
[Date "2024.12.05"]
[Round "3.2"]
[White "Mahmood Lodhi"]
[Black "Buirzayqah, Mohammed"]
[Result "1-0"]
[ECO "E60"]
[WhiteElo "2150"]
[BlackElo "1864"]
[Annotator "RC"]
[PlyCount "119"]
[EventDate "2024.11.24"]
[EventType "swiss"]
[EventCountry "QAT"]
[SourceTitle "playchess.com"]
[Source "ChessBase"]
[SourceQuality "1"]
[TimeControl "40/5400+30:1800+30"]

1. d4 {[%emt 0:00:02]} Nf6 {[%emt 0:00:37]} 2. Nf3 {[%emt 0:00:06]} g6 {[%emt 0:00:36]} 3. g3 {[%emt 0:00:10]} Bg7 {[%emt 0:00:08]} 4. Bg2 {[%emt 0:00:10]} O-O {[%emt 0:00:11]} 5. O-O {[%emt 0:00:02]} d6 {[%emt 0:00:35]} 6. c4 {[%emt 0:00:21]} Nc6 {[%emt 0:00:14]} 7. b3 {[%emt 0:04:25]} a6 {[%emt 0:00:18]} 8. Bb2 {[%emt 0:00:08]} Rb8 {[%emt 0:00:21]} 9. d5 {[%emt 0:00:32]} Na5 {[%emt 0:01:34]} 10. a4 {[%emt 0:13:38]} c5 {[%emt 0:11:00]} 11. Nbd2 {[%emt 0:05:31]} b5 {[%emt 0:06:11]} 12. axb5 {[%emt 0:00:18]} axb5 {[%emt 0:00:32]} 13. Bc3 {[%emt 0:01:02]} b4 {[%emt 0:06:01]} 14. Bb2 {[%emt 0:00:27]} Bd7 {[%emt 0:08:26]} 15. Ra2 {[%emt 0:01:24]} Ra8 {[%emt 0:03:49]} 16. Qc2 {[%emt 0:01:19]} Qb6 {[%emt 0:04:59]} 17. e4 {[%emt 0:03:35]} Ra7 {[%emt 0:05:33]} 18. h3 {[%emt 0:11:00]} Rfa8 {[%emt 0:08:13]} 19. Rfa1 {[%emt 0:07:29]} Nb7 {[%emt 0:03:26]} 20. Rxa7 {[%emt 0:04:41]} Rxa7 {[%emt 0:00:13]} 21. Rxa7 {[%emt 0:00:21]} Qxa7 {[%emt 0:00:05]} 22. Ne1 {[%emt 0:02:30]} Qa2 {[%emt 0:03:52]} 23. Nd3 {[%emt 0:05:54]} Nh5 {[%emt 0:06:19]} 24. Qb1 {[%emt 0:03:30]} Qxb1+ {[%emt 0:01:26]} 25. Nxb1 {[%emt 0:00:02]} Na5 {[%emt 0:10:13]} 26. Bxg7 {[%emt 0:00:13]} Nxg7 {[%emt 0:01:44]} 27. Nd2 {[%emt 0:00:11]} Kf8 {[%emt 0:01:03]} 28. f4 {[%emt 0:00:50]} Ke8 {[%emt 0:01:16]} 29. g4 {[%emt 0:00:32]} h5 {[%emt 0:00:58]} 30. Bf3 {[%emt 0:00:07]} hxg4 {[%emt 0:00:15]} 31. hxg4 {[%emt 0:00:02]} Kf8 {[%emt 0:04:25]} 32. Kf2 {[%emt 0:00:23]} Ne8 {[%emt 0:01:18]} 33. Kg3 {[%emt 0:00:33]} Kg7 {[%emt 0:03:09]} 34. Bd1 {[%emt 0:03:20]} Nb7 {[%emt 0:02:15]} 35. e5 {[%emt 0:00:43]} e6 {[%emt 0:03:30]} 36. Bf3 {[%emt 0:01:07]} exd5 {[%emt 0:01:43]} 37. Bxd5 {[%emt 0:01:57]} Na5 {[%emt 0:00:29]} 38. exd6 {[%emt 0:00:18]} Nxd6 {[%emt 0:00:32]} 39. Nxc5 {[%emt 0:00:11]} Bc8 {[%emt 0:00:41]} 40. Nd3 {[%emt 0:00:28]} Be6 {[%emt 0:01:11]} 41. Nxb4 {[%emt 0:30:29]} Nxb3 {[%emt 0:30:50]} 42. Nxb3 {[%emt 0:00:53]} Nxc4 {[%emt 0:00:17]} 43. Bxe6 {[%emt 0:00:39]} fxe6 {[%emt 0:00:02]} 44. Nd3 {[%emt 0:01:01]} Kf6 {[%emt 0:01:06]} 45. Nbc5 {[%emt 0:00:09]} g5 {[%emt 0:00:39]} 46. Ne4+ {[%emt 0:00:07]} Ke7 {[%emt 0:00:32]} 47. Nxg5 {[%emt 0:00:13]} Nd2 {[%emt 0:00:36]} 48. Nc5 {[%emt 0:00:31]} e5 {[%emt 0:00:14]} 49. f5 {[%emt 0:01:30]} Nc4 {[%emt 0:00:10]} 50. Nce4 {[%emt 0:00:25]} Ne3 {[%emt 0:01:02]} 51. Nf3 {[%emt 0:00:30]} Nc4 {[%emt 0:00:34]} 52. Kh4 {[%emt 0:00:24]} Kf8 {[%emt 0:00:25]} 53. Kg5 {[%emt 0:00:06]} Kf7 {[%emt 0:00:06]} 54. Ned2 {[%emt 0:00:21]} Nd6 {[%emt 0:00:42]} 55. Nxe5+ {[%emt 0:00:10]} Kf8 {[%emt 0:00:14]} 56. f6 {[%emt 0:00:27]} Kg8 {[%emt 0:00:42]} 57. Kg6 {[%emt 0:00:11]} Kh8 {[%emt 0:00:15]} 58. Ndc4 {[%emt 0:00:21]} Kg8 {[%emt 0:01:08]} 59. Nxd6 {[%emt 0:00:13]} Kh8 {[%emt 0:00:07]} 60. g5 {[%emt 0:00:37]} 1-0

[Event "Qatar Masters-B 2024"]
[Site "Doha"]
[Date "2024.12.05"]
[Round "3.3"]
[White "Demirkol, Kerim Calvelo"]
[Black "Alhassadi, Yousef A."]
[Result "0-1"]
[ECO "D32"]
[WhiteElo "1859"]
[BlackElo "2126"]
[Annotator "NA RC"]
[PlyCount "48"]
[EventDate "2024.11.24"]
[EventType "swiss"]
[EventCountry "QAT"]
[SourceTitle "playchess.com"]
[Source "ChessBase"]
[SourceQuality "1"]
[TimeControl "40/5400+30:1800+30"]

1. d4 {[%emt 0:00:04]} d5 {[%emt 0:00:05]} 2. c4 {[%emt 0:00:10]} e6 {[%emt 0:00:07]} 3. Nf3 {[%emt 0:00:15]} c5 {[%emt 0:00:06]} 4. cxd5 {[%emt 0:00:45]} exd5 {[%emt 0:00:06]} 5. Nc3 {[%emt 0:01:16]} Nf6 {[%emt 0:00:10]} 6. Bg5 {[%emt 0:01:51]} Be6 {[%emt 0:01:09]} 7. e3 {[%emt 0:02:23]} c4 {[%emt 0:01:26]} 8. e4 {[%emt 0:03:56]} dxe4 {[%emt 0:13:12]} 9. Bxf6 {[%emt 0:00:26]} Qxf6 {[%emt 0:08:06]} 10. Ne5 {[%emt 0:03:57]} Nc6 {[%emt 0:28:31]} 11. Qa4 {[%emt 0:04:04]} Bb4 {[%emt 0:13:11]} 12. Rc1 {[%emt 0:26:27]} O-O {[%emt 0:03:43]} 13. Nxc6 {[%emt 0:01:27]} Bxc3+ {[%emt 0:00:07]} 14. Rxc3 {[%emt 0:00:36]} Bd7 {[%emt 0:01:27]} 15. d5 {[%emt 0:06:20]} bxc6 {[%emt 0:01:18]} 16. dxc6 {[%emt 0:02:43]} Bxc6 {[%emt 0:00:14]} 17. Qxc4 {[%emt 0:00:11]} Rac8 {[%emt 0:04:42]} 18. Qa6 {[%emt 0:04:58]} e3 {[%emt 0:04:06]} 19. fxe3 {[%emt 0:08:22]} Qh4+ {[%emt 0:00:13]} 20. Ke2 {[%emt 0:00:26]} Bd7 {[%emt 0:03:40]} 21. Kd2 {[%emt 0:19:38]} Bf5 {[%emt 0:04:21]} 22. Be2 {[%emt 0:02:00]} Rfd8+ {[%emt 0:00:15]} 23. Bd3 {[%emt 0:03:35]} Qf2+ {[%emt 0:00:18]} 24. Kd1 {[%emt 0:00:23]} Rxc3 {[%emt 0:00:12]} 0-1

[Event "Qatar Masters-B 2024"]
[Site "Doha"]
[Date "2024.12.05"]
[Round "3.4"]
[White "Shermuhammadov, Samandar"]
[Black "Miladi, Amen"]
[Result "1-0"]
[ECO "C00"]
[WhiteElo "2108"]
[BlackElo "1878"]
[Annotator "NA RC"]
[PlyCount "129"]
[EventDate "2024.11.24"]
[EventType "swiss"]
[EventCountry "QAT"]
[SourceTitle "playchess.com"]
[Source "ChessBase"]
[SourceQuality "1"]
[TimeControl "40/5400+30:1800+30"]

1. e4 {[%emt 0:00:01]} c5 {[%emt 0:00:04]} 2. Nf3 {[%emt 0:00:03]} e6 {[%emt 0:00:03]} 3. d3 {[%emt 0:00:03]} d5 {[%emt 0:00:20]} 4. Nbd2 {[%emt 0:00:03]} Nf6 {[%emt 0:00:08]} 5. g3 {[%emt 0:00:03]} Nc6 {[%emt 0:00:26]} 6. Bg2 {[%emt 0:00:04]} Be7 {[%emt 0:00:13]} 7. O-O {[%emt 0:00:04]} O-O {[%emt 0:00:28]} 8. Re1 {[%emt 0:00:01]} b5 {[%emt 0:00:30]} 9. e5 {[%emt 0:00:09]} Nd7 {[%emt 0:00:10]} 10. Nf1 {[%emt 0:00:04]} a5 {[%emt 0:00:21]} 11. h4 {[%emt 0:00:09]} b4 {[%emt 0:00:10]} 12. N1h2 {[%emt 0:00:08]} a4 {[%emt 0:01:49]} 13. a3 {[%emt 0:00:05]} bxa3 {[%emt 0:03:22]} 14. bxa3 {[%emt 0:00:06]} Ba6 {[%emt 0:01:48]} 15. Ng4 {[%emt 0:00:22]} Rb8 {[%emt 0:01:39]} 16. h5 {[%emt 0:00:16]} Nd4 {[%emt 0:00:55]} 17. Nxd4 {[%emt 0:08:00]} cxd4 {[%emt 0:00:06]} 18. Nh2 {[%emt 0:00:09]} Qc7 {[%emt 0:03:48]} 19. Nf3 {[%emt 0:01:11]} Qc5 {[%emt 0:00:33]} 20. Bd2 {[%emt 0:01:18]} Rfe8 {[%emt 0:01:48]} 21. Bb4 {[%emt 0:00:46]} Qa7 {[%emt 0:00:40]} 22. Bxe7 {[%emt 0:00:06]} Rxe7 {[%emt 0:00:05]} 23. h6 {[%emt 0:00:04]} g6 {[%emt 0:03:22]} 24. Qd2 {[%emt 0:01:52]} Rb2 {[%emt 0:03:41]} 25. Qf4 {[%emt 0:01:30]} Rxc2 {[%emt 0:02:41]} 26. Nxd4 {[%emt 0:00:03]} Rc8 {[%emt 0:07:08]} 27. Rec1 {[%emt 0:03:51]} Qa8 {[%emt 0:12:57]} 28. Rxc8+ {[%emt 0:00:55]} Qxc8 {[%emt 0:04:09]} 29. Rc1 {[%emt 0:00:02]} Qf8 {[%emt 0:00:36]} 30. Nc6 {[%emt 0:01:38]} Re8 {[%emt 0:00:10]} 31. Nb4 {[%emt 0:00:30]} Bb5 {[%emt 0:05:10]} 32. d4 {[%emt 0:02:05]} Bc4 {[%emt 0:04:40]} 33. Rc3 {[%emt 0:03:07]} Nb6 {[%emt 0:07:38]} 34. g4 {[%emt 0:00:31]} Nc8 {[%emt 0:01:39]} 35. Bf3 {[%emt 0:02:29]} Nb6 {[%emt 0:08:15]} 36. g5 {[%emt 0:00:57]} Rc8 {[%emt 0:00:59]} 37. Bg4 {[%emt 0:01:32]} Bb3 {[%emt 0:04:35]} 38. Rc5 {[%emt 0:01:48]} Nd7 {[%emt 0:14:09]} 39. Rb5 {[%emt 0:00:20]} Rb8 {[%emt 0:01:19]} 40. Ra5 {[%emt 0:01:11]} Ra8 {[%emt 0:00:31]} 41. Rxa8 {[%emt 0:31:14]} Qxa8 {[%emt 0:30:09]} 42. Qc1 {[%emt 0:01:42]} Bc4 {[%emt 0:00:52]} 43. Qc3 {[%emt 0:00:32]} Qd8 {[%emt 0:00:38]} 44. f4 {[%emt 0:00:03]} Qb6 {[%emt 0:03:18]} 45. Kf2 {[%emt 0:00:43]} Qb5 {[%emt 0:01:40]} 46. Bd1 {[%emt 0:00:32]} Nb6 {[%emt 0:00:29]} 47. Qc2 {[%emt 0:02:46]} Kf8 {[%emt 0:00:51]} 48. Qc3 {[%emt 0:01:18]} Kg8 {[%emt 0:00:22]} 49. Ke1 {[%emt 0:04:15]} Kf8 {[%emt 0:01:20]} 50. Kd2 {[%emt 0:01:27]} Kg8 {[%emt 0:00:50]} 51. Nc2 {[%emt 0:00:52]} Nc8 {[%emt 0:01:28]} 52. Qb4 {[%emt 0:00:53]} Qxb4+ {[%emt 0:00:27]} 53. Nxb4 {[%emt 0:00:05]} Bb5 {[%emt 0:00:36]} 54. Kc3 {[%emt 0:00:15]} Ne7 {[%emt 0:00:25]} 55. Nd3 {[%emt 0:01:17]} Nc8 {[%emt 0:00:34]} 56. Nc5 {[%emt 0:00:06]} Nb6 {[%emt 0:00:03]} 57. Kb4 {[%emt 0:00:07]} Be8 {[%emt 0:01:19]} 58. Bxa4 {[%emt 0:00:06]} Kf8 {[%emt 0:00:16]} 59. Bb3 {[%emt 0:00:18]} Nc8 {[%emt 0:00:15]} 60. Nb7 {[%emt 0:00:55]} Ne7 {[%emt 0:00:13]} 61. a4 {[%emt 0:00:30]} Nf5 {[%emt 0:00:18]} 62. Kc5 {[%emt 0:00:19]} Ng3 {[%emt 0:00:29]} 63. a5 {[%emt 0:00:19]} Ne4+ {[%emt 0:00:31]} 64. Kb6 {[%emt 0:00:05]} Nc3 {[%emt 0:00:30]} 65. a6 {[%emt 0:00:10]} 1-0

[Event "Qatar Masters-B 2024"]
[Site "Doha"]
[Date "2024.12.05"]
[Round "3.5"]
[White "Maraimov, Khudoyor"]
[Black "Gyana Sai Santhosh M"]
[Result "1-0"]
[ECO "C89"]
[WhiteElo "1832"]
[BlackElo "2090"]
[Annotator "NA RC"]
[PlyCount "81"]
[EventDate "2024.11.24"]
[EventType "swiss"]
[EventCountry "QAT"]
[SourceTitle "playchess.com"]
[Source "ChessBase"]
[SourceQuality "1"]
[TimeControl "40/5400+30:1800+30"]

1. e4 {[%emt 0:00:20]} e5 {[%emt 0:00:20]} 2. Nf3 {[%emt 0:00:15]} Nc6 {[%emt 0:00:06]} 3. Bb5 {[%emt 0:00:37]} a6 {[%emt 0:00:15]} 4. Ba4 {[%emt 0:02:07]} Nf6 {[%emt 0:00:09]} 5. d3 {[%emt 0:00:16]} b5 {[%emt 0:00:27]} 6. Bb3 {[%emt 0:00:06]} Be7 {[%emt 0:00:04]} 7. c3 {[%emt 0:00:46]} d5 {[%emt 0:10:17]} 8. O-O {[%emt 0:13:38]} Bg4 {[%emt 0:05:32]} 9. Nbd2 {[%emt 0:02:35]} O-O {[%emt 0:04:25]} 10. h3 {[%emt 0:03:32]} Bh5 {[%emt 0:01:31]} 11. Re1 {[%emt 0:06:01]} dxe4 {[%emt 0:16:40]} 12. dxe4 {[%emt 0:01:08]} Bc5 {[%emt 0:04:49]} 13. Qe2 {[%emt 0:03:22]} Qe7 {[%emt 0:08:24]} 14. Nf1 {[%emt 0:02:34]} Na5 {[%emt 0:08:12]} 15. Bc2 {[%emt 0:02:18]} Nc4 {[%emt 0:01:15]} 16. Ng3 {[%emt 0:06:06]} Bg6 {[%emt 0:00:42]} 17. a4 {[%emt 0:08:39]} Nh5 {[%emt 0:04:34]} 18. Nxh5 {[%emt 0:07:47]} Bxh5 {[%emt 0:00:06]} 19. g4 {[%emt 0:00:12]} Bg6 {[%emt 0:00:53]} 20. b3 {[%emt 0:01:28]} Nd6 {[%emt 0:01:22]} 21. Be3 {[%emt 0:04:23]} Bxe3 {[%emt 0:03:32]} 22. Qxe3 {[%emt 0:00:04]} Nb7 {[%emt 0:03:35]} 23. Ra2 {[%emt 0:04:16]} Rfe8 {[%emt 0:03:04]} 24. axb5 {[%emt 0:04:19]} axb5 {[%emt 0:00:02]} 25. Rea1 {[%emt 0:00:10]} Rxa2 {[%emt 0:03:08]} 26. Rxa2 {[%emt 0:00:02]} Nd8 {[%emt 0:05:00]} 27. Ra5 {[%emt 0:02:17]} c6 {[%emt 0:03:11]} 28. b4 {[%emt 0:02:26]} Qf6 {[%emt 0:01:48]} 29. Ra8 {[%emt 0:01:10]} h5 {[%emt 0:02:12]} 30. g5 {[%emt 0:05:12]} Qe6 {[%emt 0:00:49]} 31. Nh4 {[%emt 0:01:10]} Nb7 {[%emt 0:00:20]} 32. Bb3 {[%emt 0:05:52]} Qxb3 {[%emt 0:00:22]} 33. Rxe8+ {[%emt 0:00:18]} Kh7 {[%emt 0:00:01]} 34. Qd3 {[%emt 0:05:58]} Qb2 {[%emt 0:04:29]} 35. Nxg6 {[%emt 0:02:36]} Qc1+ {[%emt 0:01:06]} 36. Kh2 {[%emt 0:00:15]} fxg6 {[%emt 0:00:02]} 37. Qf3 {[%emt 0:01:57]} Qxg5 {[%emt 0:01:23]} 38. Qf8 {[%emt 0:00:09]} Qf4+ {[%emt 0:00:04]} 39. Qxf4 {[%emt 0:00:06]} exf4 {[%emt 0:00:03]} 40. e5 {[%emt 0:00:11]} g5 {[%emt 0:00:31]} 41. Rb8 {[%emt 0:30:08]} 1-0

[Event "Qatar Masters-B 2024"]
[Site "Doha"]
[Date "2024.12.05"]
[Round "3.6"]
[White "Araoune, Saadi"]
[Black "Akramov, Khasan"]
[Result "1-0"]
[ECO "D85"]
[WhiteElo "2085"]
[BlackElo "1835"]
[Annotator "NA RC"]
[PlyCount "121"]
[EventDate "2024.11.24"]
[EventType "swiss"]
[EventCountry "QAT"]
[SourceTitle "playchess.com"]
[Source "ChessBase"]
[SourceQuality "1"]
[TimeControl "40/5400+30:1800+30"]

1. d4 {[%emt 0:00:06]} Nf6 {[%emt 0:00:06]} 2. c4 {[%emt 0:00:04]} g6 {[%emt 0:00:08]} 3. Nc3 {[%emt 0:00:05]} d5 {[%emt 0:00:07]} 4. cxd5 {[%emt 0:00:05]} Nxd5 {[%emt 0:00:05]} 5. Bd2 {[%emt 0:00:04]} c5 {[%emt 0:00:27]} 6. e4 {[%emt 0:01:31]} Nxc3 {[%emt 0:00:13]} 7. Bxc3 {[%emt 0:00:05]} cxd4 {[%emt 0:00:27]} 8. Bxd4 {[%emt 0:09:25]} e5 {[%emt 0:00:35]} 9. Bxe5 {[%emt 0:03:00]} Bb4+ {[%emt 0:00:18]} 10. Bc3 {[%emt 0:00:29]} Bxc3+ {[%emt 0:00:13]} 11. bxc3 {[%emt 0:00:06]} Qa5 {[%emt 0:00:46]} 12. Qb3 {[%emt 0:05:36]} O-O {[%emt 0:04:11]} 13. Bc4 {[%emt 0:22:55]} Nc6 {[%emt 0:05:54]} 14. Ne2 {[%emt 0:01:38]} Qc5 {[%emt 0:11:52]} 15. Qb5 {[%emt 0:05:21]} Qe7 {[%emt 0:01:28]} 16. Bd5 {[%emt 0:01:04]} a6 {[%emt 0:18:45]} 17. Qb3 {[%emt 0:01:09]} Bg4 {[%emt 0:22:39]} 18. f3 {[%emt 0:02:44]} Bd7 {[%emt 0:01:57]} 19. Qb6 {[%emt 0:03:00]} Ne5 {[%emt 0:05:44]} 20. O-O {[%emt 0:01:09]} Bb5 {[%emt 0:02:10]} 21. Qe3 {[%emt 0:02:54]} Rac8 {[%emt 0:02:07]} 22. Rfb1 {[%emt 0:06:36]} Nc4 {[%emt 0:02:30]} 23. Qf2 {[%emt 0:05:24]} Na3 {[%emt 0:04:16]} 24. Rc1 {[%emt 0:01:58]} Bxe2 {[%emt 0:02:33]} 25. Qxe2 {[%emt 0:00:07]} b5 {[%emt 0:00:44]} 26. f4 {[%emt 0:09:03]} Rfd8 {[%emt 0:00:49]} 27. Qf3 {[%emt 0:00:22]} Nc4 {[%emt 0:01:18]} 28. f5 {[%emt 0:02:08]} Qc5+ {[%emt 0:01:54]} 29. Kh1 {[%emt 0:00:58]} Ne5 {[%emt 0:00:27]} 30. Qg3 {[%emt 0:00:58]} Re8 {[%emt 0:00:06]} 31. fxg6 {[%emt 0:02:44]} hxg6 {[%emt 0:00:09]} 32. Rf1 {[%emt 0:00:34]} Rc7 {[%emt 0:02:56]} 33. Rac1 {[%emt 0:00:36]} Kg7 {[%emt 0:01:22]} 34. Rf5 {[%emt 0:05:09]} Qe7 {[%emt 0:03:03]} 35. Rcf1 {[%emt 0:00:46]} Rd7 {[%emt 0:02:26]} 36. Rh5 {[%emt 0:01:59]} f6 {[%emt 0:01:47]} 37. Rh3 {[%emt 0:00:44]} Rdd8 {[%emt 0:00:40]} 38. Qe3 {[%emt 0:02:35]} Rh8 {[%emt 0:00:09]} 39. Rxh8 {[%emt 0:00:15]} Rxh8 {[%emt 0:00:05]} 40. Qb6 {[%emt 0:00:51]} g5 {[%emt 0:02:24]} 41. Qb7 {[%emt 0:30:55]} Qxb7 {[%emt 0:30:28]} 42. Bxb7 {[%emt 0:00:02]} Rb8 {[%emt 0:00:13]} 43. Bxa6 {[%emt 0:01:29]} Rb6 {[%emt 0:00:30]} 44. Bc8 {[%emt 0:00:23]} Rc6 {[%emt 0:00:04]} 45. Bb7 {[%emt 0:00:42]} Rxc3 {[%emt 0:00:05]} 46. h3 {[%emt 0:00:21]} Rc2 {[%emt 0:00:53]} 47. Bd5 {[%emt 0:00:37]} Nd3 {[%emt 0:00:59]} 48. Bb3 {[%emt 0:02:33]} Rb2 {[%emt 0:00:26]} 49. Kg1 {[%emt 0:00:32]} Re2 {[%emt 0:00:50]} 50. Rf5 {[%emt 0:00:52]} Nf4 {[%emt 0:00:35]} 51. Kf1 {[%emt 0:00:27]} Rxe4 {[%emt 0:00:29]} 52. Rxb5 {[%emt 0:00:06]} Nd3 {[%emt 0:00:23]} 53. Rb7+ {[%emt 0:00:34]} Kh6 {[%emt 0:00:18]} 54. Kg1 {[%emt 0:00:19]} Re1+ {[%emt 0:00:45]} 55. Kh2 {[%emt 0:00:01]} Nf4 {[%emt 0:00:30]} 56. Bc2 {[%emt 0:00:27]} Ng6 {[%emt 0:00:36]} 57. a4 {[%emt 0:01:08]} Re2 {[%emt 0:00:25]} 58. Rc7 {[%emt 0:00:36]} g4 {[%emt 0:00:38]} 59. hxg4 {[%emt 0:01:05]} Nf4 {[%emt 0:00:29]} 60. Kg3 {[%emt 0:00:14]} Ne6 {[%emt 0:00:29]} 61. Rh7+ {[%emt 0:00:26]} 1-0

[Event "Qatar Masters-B 2024"]
[Site "Doha"]
[Date "2024.12.05"]
[Round "3.7"]
[White "Achour, Mohamed Anis"]
[Black "AlJamaat, Khaled"]
[Result "1-0"]
[ECO "B13"]
[WhiteElo "2051"]
[BlackElo "1763"]
[Annotator "NA RC"]
[PlyCount "119"]
[EventDate "2024.11.24"]
[EventType "swiss"]
[EventCountry "QAT"]
[SourceTitle "playchess.com"]
[Source "ChessBase"]
[SourceQuality "1"]
[TimeControl "40/5400+30:1800+30"]

1. d4 {[%emt 0:00:04]} d5 {[%emt 0:00:07]} 2. Bf4 {[%emt 0:00:05]} c5 {[%emt 0:00:07]} 3. e3 {[%emt 0:00:04]} Nc6 {[%emt 0:00:04]} 4. Nf3 {[%emt 0:00:30]} Nf6 {[%emt 0:00:30]} 5. c3 {[%emt 0:00:30]} cxd4 {[%emt 0:00:30]} 6. exd4 {[%emt 0:00:30]} Bf5 {[%emt 0:00:30]} 7. Bd3 {[%emt 0:00:40]} Bxd3 {[%emt 0:06:00]} 8. Qxd3 {[%emt 0:00:30]} Qb6 {[%emt 0:00:30]} 9. Qc2 {[%emt 0:00:30]} Rc8 {[%emt 0:00:30]} 10. Qb3 {[%emt 0:00:30]} Qa6 {[%emt 0:00:30]} 11. a4 {[%emt 0:00:30]} Nh5 {[%emt 0:00:30]} 12. Bg3 {[%emt 0:04:27]} e6 {[%emt 0:03:39]} 13. Qb5 {[%emt 0:00:30]} Nxg3 {[%emt 0:00:30]} 14. hxg3 {[%emt 0:00:30]} Bd6 {[%emt 0:00:30]} 15. Nbd2 {[%emt 0:00:30]} O-O {[%emt 0:00:30]} 16. O-O {[%emt 0:00:30]} Qa5 {[%emt 0:00:30]} 17. Qxb7 {[%emt 0:13:36]} Ne7 {[%emt 0:07:57]} 18. Qb5 {[%emt 0:02:43]} Qc7 {[%emt 0:02:19]} 19. Qd3 {[%emt 0:00:30]} Rb8 {[%emt 0:00:30]} 20. b4 {[%emt 0:00:30]} Rfc8 {[%emt 0:00:30]} 21. Rfc1 {[%emt 0:00:30]} Nf5 {[%emt 0:00:30]} 22. Nb3 {[%emt 0:00:30]} Qe7 {[%emt 0:00:30]} 23. a5 {[%emt 0:00:30]} g6 {[%emt 0:00:30]} 24. Nc5 {[%emt 0:00:30]} Kg7 {[%emt 0:00:30]} 25. g4 {[%emt 0:00:30]} Nh6 {[%emt 0:00:30]} 26. g5 {[%emt 0:00:30]} Ng8 {[%emt 0:00:30]} 27. Re1 {[%emt 0:05:50]} h6 {[%emt 0:02:37]} 28. Qe3 {[%emt 0:00:30]} hxg5 {[%emt 0:00:30]} 29. Qxg5 {[%emt 0:00:30]} Nf6 {[%emt 0:00:30]} 30. g4 {[%emt 0:00:30]} Rh8 {[%emt 0:00:30]} 31. Kg2 {[%emt 0:00:30]} Bxc5 {[%emt 0:00:30]} 32. dxc5 {[%emt 0:00:30]} Qc7 {[%emt 0:00:30]} 33. Qe5 {[%emt 0:00:30]} Qxe5 {[%emt 0:00:30]} 34. Nxe5 {[%emt 0:00:30]} Ne4 {[%emt 0:00:30]} 35. Rac1 {[%emt 0:00:30]} Rh4 {[%emt 0:00:30]} 36. f3 {[%emt 0:00:30]} Rbh8 {[%emt 0:00:30]} 37. fxe4 {[%emt 0:19:04]} Rh2+ {[%emt 0:01:08]} 38. Kf1 {[%emt 0:00:30]} dxe4 {[%emt 0:00:30]} 39. g5 {[%emt 0:04:22]} Rh1+ {[%emt 0:01:28]} 40. Ke2 {[%emt 0:00:30]} R1h2+ {[%emt 0:00:30]} 41. Ke3 {[%emt 0:30:30]} R2h3+ {[%emt 0:30:30]} 42. Kd4 {[%emt 0:00:30]} Rd8+ {[%emt 0:00:30]} 43. Kc4 {[%emt 0:00:30]} Rh4 {[%emt 0:00:30]} 44. Kb5 {[%emt 0:00:30]} Rd5 {[%emt 0:00:30]} 45. Nc6 {[%emt 0:00:30]} Rxg5 {[%emt 0:00:30]} 46. Nxa7 {[%emt 0:00:30]} Rd5 {[%emt 0:00:30]} 47. Nc6 {[%emt 0:00:30]} Rh8 {[%emt 0:00:30]} 48. Rxe4 {[%emt 0:00:30]} Ra8 {[%emt 0:00:30]} 49. a6 {[%emt 0:00:30]} Kf8 {[%emt 0:00:30]} 50. Rh1 {[%emt 0:00:30]} Kg7 {[%emt 0:00:30]} 51. Rd4 {[%emt 0:00:30]} g5 {[%emt 0:00:30]} 52. Rxd5 {[%emt 0:00:30]} exd5 {[%emt 0:00:30]} 53. Ne7 {[%emt 0:00:30]} g4 {[%emt 0:00:30]} 54. Rg1 {[%emt 0:00:30]} Kf6 {[%emt 0:00:30]} 55. Nxd5+ {[%emt 0:00:30]} Ke5 {[%emt 0:00:30]} 56. Nb6 {[%emt 0:00:30]} Ra7 {[%emt 0:00:30]} 57. Rxg4 {[%emt 0:00:30]} f5 {[%emt 0:00:30]} 58. Rg1 {[%emt 0:00:30]} Kf4 {[%emt 0:00:30]} 59. Nc4 {[%emt 0:00:30]} Kf3 {[%emt 0:00:30]} 60. Rf1+ {[%emt 0:00:30]} 1-0